[Event "4NCL 2019-20"]
[Site "Daventry"]
[Date "2020.02.09"]
[Round "6"]
[White "Sucikova, Svetlana"]
[Black "Bhatia, Kanwal K"]
[Result "1-0"]
[ECO "A22"]
[WhiteElo "2160"]
[BlackElo "2037"]
[Annotator "ChessBase"]
[PlyCount "59"]
[EventDate "2020.01.11"]
[EventCountry "ENG"]
[SourceTitle "playchess.com"]
[Source "ChessBase"]
[SourceQuality "1"]
[TimeControl "40/6000:3000+30"]

1. e3 {[%emt 0:01:13]} e5 {[%emt 0:00:41]} 2. c4 {[%emt 0:00:11]} Nf6 {[%emt 0:01:32]} 3. Nc3 {[%emt 0:00:04]} d5 {[%emt 0:12:08]} 4. cxd5 {[%emt 0:03:35]} Nxd5 {[%emt 0:00:00]} 5. Bc4 {[%emt 0:10:12]} Nb6 {[%emt 0:08:06]} 6. Bb3 {[%emt 0:01:55]} Nc6 {[%emt 0:00:24]} 7. Qf3 {[%emt 0:09:33]} Qe7 {[%emt 0:01:10]} 8. a3 {[%emt 0:00:06]} g6 {[%emt 0:02:21]} 9. h4 {[%emt 0:18:15]} h5 {[%emt 0:11:35]} 10. Nh3 {[%emt 0:05:46]} Bg4 {[%emt 0:04:22]} 11. Qg3 {[%emt 0:00:00]} Nd4 {[%emt 0:10:12]} 12. exd4 {[%emt 0:03:04]} exd4+ {[%emt 0:00:00]} 13. Kf1 {[%emt 0:00:00]} dxc3 {[%emt 0:00:42]} 14. dxc3 {[%emt 0:00:34]} O-O-O {[%emt 0:10:55]} 15. Be3 {[%emt 0:05:27]} Be6 {[%emt 0:01:31]} 16. Bc2 {[%emt 0:08:31]} Bg7 {[%emt 0:06:14]} 17. Kg1 {[%emt 0:02:15]} Rd7 {[%emt 0:07:47]} 18. Re1 {[%emt 0:00:54]} Nc4 {[%emt 0:02:20]} 19. Bc1 {[%emt 0:02:02]} Qc5 {[%emt 0:01:31]} 20. Ng5 {[%emt 0:07:42]} Bg4 {[%emt 0:04:02]} 21. Kh2 {[%emt 0:02:57]} Rhd8 {[%emt 0:05:39]} 22. Rhf1 {[%emt 0:02:21]} Nd2 {[%emt 0:00:45]} 23. Rg1 {[%emt 0:03:51]} Bf8 {[%emt 0:02:25]} 24. Kh1 {[%emt 0:00:20]} Qb6 {[%emt 0:00:00]} 25. Qf4 {[%emt 0:02:04]} Bc5 {[%emt 0:00:05]} 26. Ba4 {[%emt 0:01:40]} Rd5 {[%emt 0:00:45]} 27. Bxd2 {[%emt 0:00:39]} Rxd2 {[%emt 0:00:00]} 28. Nxf7 {[%emt 0:00:00]} Rxf2 {[%emt 0:00:00]} 29. Qg5 {[%emt 0:00:00]} Rxf7 {[%emt 0:00:23]} 30. Qxd8+ {[%emt 0:00:00]} 1-0

[Event "4NCL 2019-20"]
[Site "Daventry"]
[Date "2020.02.09"]
[Round "6"]
[White "Maciol, Ryszard"]
[Black "Carleton, John J"]
[Result "1/2-1/2"]
[ECO "E51"]
[WhiteElo "2158"]
[BlackElo "2238"]
[Annotator "ChessBase"]
[PlyCount "67"]
[EventDate "2020.01.11"]
[EventCountry "ENG"]
[SourceTitle "playchess.com"]
[Source "ChessBase"]
[SourceQuality "1"]
[TimeControl "40/6000:3000+30"]

1. d4 {[%emt 0:01:02]} d5 {[%emt 0:00:00]} 2. c4 {[%emt 0:00:00]} e6 {[%emt 0:00:00]} 3. Nc3 {[%emt 0:00:00]} Bb4 {[%emt 0:00:00]} 4. Nf3 {[%emt 0:00:04]} Nf6 {[%emt 0:00:00]} 5. e3 {[%emt 0:02:20]} O-O {[%emt 0:00:00]} 6. Bd3 {[%emt 0:00:00]} Nc6 {[%emt 0:01:14]} 7. O-O {[%emt 0:00:49]} dxc4 {[%emt 0:00:43]} 8. Bxc4 {[%emt 0:00:00]} a6 {[%emt 0:00:00]} 9. Ne2 {[%emt 0:02:27]} Bd6 {[%emt 0:01:33]} 10. Qc2 {[%emt 0:01:54]} b5 {[%emt 0:09:05]} 11. Bb3 {[%emt 0:00:00]} Bb7 {[%emt 0:00:12]} 12. Bd2 {[%emt 0:01:39]} e5 {[%emt 0:04:07]} 13. dxe5 {[%emt 0:01:26]} Nxe5 {[%emt 0:00:00]} 14. Nxe5 {[%emt 0:00:00]} Bxe5 {[%emt 0:00:00]} 15. Ng3 {[%emt 0:01:24]} Ng4 {[%emt 0:05:02]} 16. Qf5 {[%emt 0:10:12]} Bxg3 {[%emt 0:17:01]} 17. hxg3 {[%emt 0:03:21]} Qxd2 {[%emt 0:00:00]} 18. Qxg4 {[%emt 0:00:00]} Qxb2 {[%emt 0:00:00]} 19. Rac1 {[%emt 0:03:13]} Qe5 {[%emt 0:04:35]} 20. Qf4 {[%emt 0:04:43]} Qxf4 {[%emt 0:00:00]} 21. gxf4 {[%emt 0:00:00]} c6 {[%emt 0:00:00]} 22. Rc5 {[%emt 0:01:27]} Rfd8 {[%emt 0:00:16]} 23. g4 {[%emt 0:03:18]} Kf8 {[%emt 0:01:33]} 24. Kg2 {[%emt 0:01:04]} a5 {[%emt 0:04:13]} 25. Rh1 {[%emt 0:07:32]} h6 {[%emt 0:04:40]} 26. g5 {[%emt 0:01:50]} hxg5 {[%emt 0:02:35]} 27. Re5 {[%emt 0:05:22]} c5+ {[%emt 0:05:33]} 28. f3 {[%emt 0:00:16]} g6 {[%emt 0:03:56]} 29. Rxc5 {[%emt 0:03:56]} g4 {[%emt 0:21:53]} 30. e4 {[%emt 0:08:18]} Rd7 {[%emt 0:03:23]} 31. Rxb5 {[%emt 0:04:52]} Kg7 {[%emt 0:01:00]} 32. Rd1 {[%emt 0:04:18]} Rxd1 {[%emt 0:02:03]} 33. Bxd1 {[%emt 0:00:00]} Rd8 {[%emt 0:00:24]} 34. Rxb7 {[%emt 0:03:34]} 1/2-1/2

[Event "4NCL 2019-20"]
[Site "Daventry"]
[Date "2020.02.09"]
[Round "6"]
[White "Zulfic, Fedja"]
[Black "House, Glenn L"]
[Result "0-1"]
[ECO "B80"]
[WhiteElo "2156"]
[BlackElo "2239"]
[Annotator "ChessBase"]
[PlyCount "82"]
[EventDate "2020.01.11"]
[EventCountry "ENG"]
[SourceTitle "playchess.com"]
[Source "ChessBase"]
[SourceQuality "1"]
[TimeControl "40/6000:3000+30"]

1. e4 {[%emt 0:00:00]} c5 {[%emt 0:00:55]} 2. Nf3 {[%emt 0:00:00]} e6 {[%emt 0:00:00]} 3. d4 {[%emt 0:00:00]} cxd4 {[%emt 0:00:00]} 4. Nxd4 {[%emt 0:00:00]} Nf6 {[%emt 0:00:00]} 5. Nc3 {[%emt 0:00:00]} d6 {[%emt 0:00:00]} 6. Be3 {[%emt 0:00:00]} Be7 {[%emt 0:00:00]} 7. f3 {[%emt 0:00:00]} O-O {[%emt 0:00:00]} 8. Qd2 {[%emt 0:00:00]} d5 {[%emt 0:00:00]} 9. e5 {[%emt 0:08:41]} Nfd7 {[%emt 0:00:00]} 10. f4 {[%emt 0:02:28]} Nc6 {[%emt 0:00:00]} 11. O-O-O {[%emt 0:03:11]} a6 {[%emt 0:00:00]} 12. Kb1 {[%emt 0:06:50]} Qc7 {[%emt 0:00:15]} 13. g4 {[%emt 0:06:26]} Nxd4 {[%emt 0:01:58]} 14. Bxd4 {[%emt 0:00:00]} b5 {[%emt 0:00:00]} 15. Bg2 {[%emt 0:10:50]} b4 {[%emt 0:07:22]} 16. Ne2 {[%emt 0:00:34]} a5 {[%emt 0:07:44]} 17. g5 {[%emt 0:07:40]} Bb7 {[%emt 0:14:57]} 18. Rhf1 {[%emt 0:20:37]} g6 {[%emt 0:13:03]} 19. h4 {[%emt 0:00:05]} Rfc8 {[%emt 0:03:19]} 20. h5 {[%emt 0:01:31]} Ba6 {[%emt 0:07:49]} 21. hxg6 {[%emt 0:00:41]} hxg6 {[%emt 0:02:14]} 22. f5 {[%emt 0:08:17]} Qxc2+ {[%emt 0:00:37]} 23. Qxc2 {[%emt 0:00:23]} Rxc2 {[%emt 0:00:00]} 24. fxe6 {[%emt 0:06:27]} fxe6 {[%emt 0:01:12]} 25. Bh3 {[%emt 0:02:55]} Rc6 {[%emt 0:00:35]} 26. Rf2 {[%emt 0:01:54]} Rac8 {[%emt 0:08:12]} 27. Nf4 {[%emt 0:02:37]} Nf8 {[%emt 0:01:16]} 28. Rg2 {[%emt 0:00:33]} a4 {[%emt 0:02:48]} 29. Rh1 {[%emt 0:02:19]} R8c7 {[%emt 0:04:13]} 30. Rg3 {[%emt 0:00:00]} Bc8 {[%emt 0:02:20]} 31. Bg2 {[%emt 0:00:15]} Bc5 {[%emt 0:03:11]} 32. Bxc5 {[%emt 0:02:43]} Rxc5 {[%emt 0:00:00]} 33. Nd3 {[%emt 0:00:00]} Rc4 {[%emt 0:02:12]} 34. Nf2 {[%emt 0:00:00]} Rh7 {[%emt 0:00:57]} 35. Rd1 {[%emt 0:00:12]} Rhh4 {[%emt 0:00:53]} 36. Bf3 {[%emt 0:01:01]} Rcf4 {[%emt 0:01:11]} 37. Ng4 {[%emt 0:00:13]} Rxf3 {[%emt 0:00:49]} 38. Rxf3 {[%emt 0:00:01]} Rxg4 {[%emt 0:00:00]} 39. Rc1 {[%emt 0:00:00]} Bd7 {[%emt 0:00:00]} 40. Rcf1 {[%emt 0:00:00]} Nh7 {[%emt 0:00:12]} 41. Rf7 {[%emt 0:50:27]} Bb5 {[%emt 0:50:36]} 0-1

[Event "4NCL 2019-20"]
[Site "Daventry"]
[Date "2020.02.09"]
[Round "6"]
[White "Stewart, Ashley"]
[Black "Walton, Alan J"]
[Result "1/2-1/2"]
[ECO "A21"]
[WhiteElo "2152"]
[BlackElo "2123"]
[Annotator "ChessBase"]
[PlyCount "121"]
[EventDate "2020.01.11"]
[EventCountry "ENG"]
[SourceTitle "playchess.com"]
[Source "ChessBase"]
[SourceQuality "1"]
[TimeControl "40/6000:3000+30"]

1. c4 {[%emt 0:00:00]} f5 {[%emt 0:00:00]} 2. g3 {[%emt 0:00:00]} Nf6 {[%emt 0:00:00]} 3. Bg2 {[%emt 0:00:00]} d6 {[%emt 0:00:00]} 4. Nc3 {[%emt 0:00:00]} e5 {[%emt 0:00:00]} 5. e3 {[%emt 0:00:00]} Be7 {[%emt 0:00:53]} 6. Nge2 {[%emt 0:00:00]} O-O {[%emt 0:00:05]} 7. d3 {[%emt 0:00:00]} Qe8 {[%emt 0:00:11]} 8. O-O {[%emt 0:00:30]} Nc6 {[%emt 0:00:17]} 9. b3 {[%emt 0:03:01]} Bd8 {[%emt 0:09:01]} 10. f4 {[%emt 0:01:58]} Qh5 {[%emt 0:12:35]} 11. Qd2 {[%emt 0:05:27]} Re8 {[%emt 0:05:34]} 12. Nd5 {[%emt 0:08:31]} Nxd5 {[%emt 0:08:13]} 13. cxd5 {[%emt 0:00:00]} Ne7 {[%emt 0:03:13]} 14. Bb2 {[%emt 0:09:57]} Ng6 {[%emt 0:01:03]} 15. e4 {[%emt 0:04:20]} fxe4 {[%emt 0:00:38]} 16. dxe4 {[%emt 0:00:00]} Bg4 {[%emt 0:00:00]} 17. Rae1 {[%emt 0:01:52]} exf4 {[%emt 0:05:17]} 18. Nxf4 {[%emt 0:03:23]} Qh6 {[%emt 0:03:50]} 19. Qb4 {[%emt 0:05:25]} Rb8 {[%emt 0:04:57]} 20. Nxg6 {[%emt 0:02:03]} Qxg6 {[%emt 0:01:12]} 21. e5 {[%emt 0:08:42]} dxe5 {[%emt 0:00:14]} 22. Rxe5 {[%emt 0:00:21]} Bf6 {[%emt 0:02:32]} 23. Rxe8+ {[%emt 0:08:40]} Rxe8 {[%emt 0:00:00]} 24. Bxf6 {[%emt 0:00:39]} gxf6 {[%emt 0:00:00]} 25. Qxb7 {[%emt 0:02:18]} Qc2 {[%emt 0:00:11]} 26. Qc6 {[%emt 0:05:18]} Re2 {[%emt 0:00:16]} 27. Qxc2 {[%emt 0:02:41]} Rxc2 {[%emt 0:00:27]} 28. Rf4 {[%emt 0:07:05]} Rc1+ {[%emt 0:00:06]} 29. Kf2 {[%emt 0:05:13]} Rc2+ {[%emt 0:00:00]} 30. Kg1 {[%emt 0:03:46]} Rc1+ {[%emt 0:00:00]} 31. Rf1 {[%emt 0:00:24]} Rc2 {[%emt 0:00:00]} 32. Rxf6 {[%emt 0:01:35]} Rxa2 {[%emt 0:00:00]} 33. h3 {[%emt 0:02:14]} Bd1 {[%emt 0:02:53]} 34. Rc6 {[%emt 0:02:13]} Bxb3 {[%emt 0:00:00]} 35. Rxc7 {[%emt 0:00:00]} Rd2 {[%emt 0:00:22]} 36. Rc8+ {[%emt 0:00:04]} Kg7 {[%emt 0:00:00]} 37. Rc7+ {[%emt 0:00:00]} Kg8 {[%emt 0:00:00]} 38. Rxa7 {[%emt 0:00:58]} Rd1+ {[%emt 0:00:16]} 39. Kh2 {[%emt 0:00:13]} Bxd5 {[%emt 0:00:00]} 40. Bxd5+ {[%emt 0:00:28]} Rxd5 {[%emt 0:00:00]} 41. Kg2 {[%emt 0:04:12]} Rf5 {[%emt 0:00:12]} 42. g4 {[%emt 0:06:38]} Rb5 {[%emt 0:00:41]} 43. h4 {[%emt 0:00:21]} h5 {[%emt 0:00:58]} 44. g5 {[%emt 0:00:50]} Rb4 {[%emt 0:00:02]} 45. Kg3 {[%emt 0:01:57]} Rg4+ {[%emt 0:00:05]} 46. Kh3 {[%emt 0:00:58]} Rb4 {[%emt 0:00:10]} 47. Ra6 {[%emt 0:01:53]} Kg7 {[%emt 0:00:08]} 48. Rh6 {[%emt 0:00:33]} Rb3+ {[%emt 0:00:03]} 49. Kg2 {[%emt 0:06:30]} Rb2+ {[%emt 0:00:11]} 50. Kf3 {[%emt 0:04:01]} Rb3+ {[%emt 0:00:05]} 51. Ke2 {[%emt 0:01:20]} Rb4 {[%emt 0:00:15]} 52. Rxh5 {[%emt 0:00:16]} Rb6 {[%emt 0:00:03]} 53. Kd3 {[%emt 0:02:10]} Ra6 {[%emt 0:00:03]} 54. Kc4 {[%emt 0:01:05]} Rc6+ {[%emt 0:00:13]} 55. Kd5 {[%emt 0:00:24]} Ra6 {[%emt 0:00:04]} 56. Ke5 {[%emt 0:00:06]} Ra5+ {[%emt 0:00:04]} 57. Ke6 {[%emt 0:00:52]} Ra6+ {[%emt 0:00:04]} 58. Kd7 {[%emt 0:00:18]} Ra7+ {[%emt 0:00:10]} 59. Kc6 {[%emt 0:00:19]} Ra6+ {[%emt 0:00:02]} 60. Kb7 {[%emt 0:00:05]} Re6 {[%emt 0:00:03]} 61. Ka8 {[%emt 0:04:22]} 1/2-1/2

[Event "4NCL 2019-20"]
[Site "Daventry"]
[Date "2020.02.09"]
[Round "6"]
[White "Purton, Ben J"]
[Black "Connell, Blair N"]
[Result "1/2-1/2"]
[ECO "C41"]
[WhiteElo "2138"]
[BlackElo "2239"]
[Annotator "ChessBase"]
[PlyCount "34"]
[EventDate "2020.01.11"]
[EventCountry "ENG"]
[SourceTitle "playchess.com"]
[Source "ChessBase"]
[SourceQuality "1"]
[TimeControl "40/6000:3000+30"]

1. e4 {[%emt 0:37:34]} d6 {[%emt 0:01:59]} 2. d4 {[%emt 0:01:32]} Nf6 {[%emt 0:02:30]} 3. Nc3 {[%emt 0:00:41]} e5 {[%emt 0:00:56]} 4. Nf3 {[%emt 0:01:53]} Nbd7 {[%emt 0:00:43]} 5. Bc4 {[%emt 0:00:33]} Be7 {[%emt 0:01:49]} 6. O-O {[%emt 0:01:09]} c6 {[%emt 0:01:55]} 7. a4 {[%emt 0:02:41]} Qc7 {[%emt 0:02:43]} 8. Re1 {[%emt 0:02:33]} O-O {[%emt 0:07:40]} 9. h3 {[%emt 0:03:46]} b6 {[%emt 0:05:53]} 10. Ba2 {[%emt 0:02:40]} a6 {[%emt 0:00:22]} 11. Be3 {[%emt 0:01:42]} Bb7 {[%emt 0:04:35]} 12. Nh4 {[%emt 0:01:32]} g6 {[%emt 0:04:56]} 13. Nf3 {[%emt 0:02:58]} Rfe8 {[%emt 0:00:07]} 14. Ng5 {[%emt 0:01:04]} Rf8 {[%emt 0:00:10]} 15. Nf3 {[%emt 0:00:47]} Rfe8 {[%emt 0:10:12]} 16. Ng5 {[%emt 0:01:45]} Rf8 {[%emt 0:00:05]} 17. Nf3 {[%emt 0:01:25]} Qd8 {[%emt 0:00:23]} 1/2-1/2

[Event "4NCL 2019-20"]
[Site "Daventry"]
[Date "2020.02.09"]
[Round "6"]
[White "Steil-Antoni, Fiona"]
[Black "Head, Louise"]
[Result "1-0"]
[ECO "B12"]
[WhiteElo "2121"]
[BlackElo "2100"]
[Annotator "ChessBase"]
[PlyCount "65"]
[EventDate "2020.01.11"]
[EventCountry "ENG"]
[SourceTitle "playchess.com"]
[Source "ChessBase"]
[SourceQuality "1"]
[TimeControl "40/6000:3000+30"]

1. e4 {[%emt 0:00:21]} c6 {[%emt 0:00:01]} 2. d4 {[%emt 0:00:02]} d5 {[%emt 0:00:01]} 3. e5 c5 4. dxc5 {[%emt 0:00:03]} e6 {[%emt 0:00:01]} 5. a3 {[%emt 0:00:03]} Bxc5 {[%emt 0:00:04]} 6. Qg4 {[%emt 0:00:03]} Bf8 {[%emt 0:00:02]} 7. Nf3 {[%emt 0:00:03]} Ne7 {[%emt 0:00:02]} 8. Bd3 {[%emt 0:00:02]} Qc7 {[%emt 0:00:02]} 9. Nc3 {[%emt 0:00:02]} a6 {[%emt 0:00:02]} 10. O-O {[%emt 0:00:04]} Nd7 {[%emt 0:00:01]} 11. Re1 {[%emt 0:00:03]} b6 {[%emt 0:00:01]} 12. h4 {[%emt 0:00:02]} Bb7 {[%emt 0:00:02]} 13. Bd2 {[%emt 0:00:01]} h5 {[%emt 0:00:02]} 14. Qg3 {[%emt 0:00:20]} g6 15. Nd4 {[%emt 0:00:10]} Rg8 {[%emt 0:00:02]} 16. Ncb5 {[%emt 0:00:05]} axb5 {[%emt 0:00:02]} 17. Nxb5 {[%emt 0:00:04]} Qb8 {[%emt 0:00:04]} 18. Nd6+ {[%emt 0:00:03]} Kd8 {[%emt 0:00:02]} 19. Nxf7+ {[%emt 0:00:01]} Ke8 {[%emt 0:00:04]} 20. Nd6+ {[%emt 0:00:02]} Kd8 21. Bg5 {[%emt 0:00:04]} Nc5 {[%emt 0:00:03]} 22. Qf4 {[%emt 0:00:02]} Nxd3 {[%emt 0:00:03]} 23. cxd3 {[%emt 0:00:03]} Kd7 {[%emt 0:00:02]} 24. Rac1 {[%emt 0:00:02]} Nf5 {[%emt 0:00:03]} 25. Nxf5 {[%emt 0:00:06]} gxf5 {[%emt 0:00:06]} 26. Qf3 {[%emt 0:00:04]} Qe8 {[%emt 0:00:02]} 27. d4 {[%emt 0:00:02]} Be7 {[%emt 0:00:01]} 28. Qb3 {[%emt 0:00:03]} Bxg5 {[%emt 0:00:02]} 29. Qxb6 {[%emt 0:00:03]} Qb8 {[%emt 0:00:03]} 30. hxg5 {[%emt 0:00:03]} Ra6 {[%emt 0:00:04]} 31. Qb5+ {[%emt 0:00:02]} Rc6 {[%emt 0:00:02]} 32. Rc3 {[%emt 0:00:02]} Rxg5 {[%emt 0:00:02]} 33. Rxc6 {[%emt 0:00:04]} 1-0

[Event "4NCL 2019-20"]
[Site "Daventry"]
[Date "2020.02.09"]
[Round "6"]
[White "Pedersen, Carsten"]
[Black "Jackson, Sheila"]
[Result "1-0"]
[ECO "C24"]
[WhiteElo "2073"]
[BlackElo "2064"]
[Annotator "NA RC"]
[PlyCount "117"]
[EventDate "2020.01.11"]
[EventCountry "ENG"]
[SourceTitle "playchess.com"]
[Source "ChessBase"]
[SourceQuality "1"]
[TimeControl "40/6000:3000+30"]

1. e4 {[%emt 0:00:00]} e5 {[%emt 0:00:00]} 2. Bc4 {[%emt 0:00:00]} Nf6 {[%emt 0:00:00]} 3. d3 {[%emt 0:00:00]} Bc5 {[%emt 0:00:00]} 4. Nf3 {[%emt 0:00:00]} d6 {[%emt 0:00:06]} 5. O-O {[%emt 0:00:00]} O-O {[%emt 0:05:14]} 6. a4 {[%emt 0:02:32] C24: Bishop's Opening: 2...Nf6.} a6 {[%emt 0:00:00]} 7. Nc3 {[%emt 0:07:15]} Nc6 {[%emt 0:00:49]} 8. Nd5 {[%emt 0:06:20]} h6 {[%emt 0:01:49]} 9. Be3 {[%emt 0:04:30] [#]} Bg4 $146 {[%emt 0:07:39]} ({Predecessor:} 9... Be6 10. Qd2 Bxe3 11. Nxe3 Ng4 12. Bxe6 Nxe3 13. Bxf7+ Rxf7 14. Qxe3 Nd4 15. Nxd4 exd4 16. Qxd4 {1-0 (54) Baranyai,A (1542)-Gyorfi,P Hajduszoboszlo 2014}) 10. Bxc5 {[%emt 0:11:51]} dxc5 {[%emt 0:00:00]} 11. Ne3 {[%emt 0:00:00]} Bxf3 {[%emt 0:00:55]} 12. Qxf3 {[%emt 0:00:00]} Nd4 {[%emt 0:00:00]} 13. Qd1 {[%emt 0:00:00]} b5 {[%emt 0:02:17]} 14. Ba2 {[%emt 0:06:04]} Qd6 {[%emt 0:04:59]} 15. c3 {[%emt 0:06:19]} Ne6 {[%emt 0:00:00]} 16. Nf5 {[%emt 0:00:00]} Qd7 {[%emt 0:02:38]} 17. Qf3 {[%emt 0:04:43]} Kh7 {[%emt 0:13:12]} 18. Rfd1 {[%emt 0:11:44]} Ne8 {[%emt 0:07:07]} 19. axb5 {[%emt 0:03:29]} Qxb5 {[%emt 0:02:05]} 20. Nxh6 {[%emt 0:15:49]} Ng5 {[%emt 0:10:02]} 21. Qf5+ {[%emt 0:00:34]} Kxh6 {[%emt 0:00:00]} 22. f4 exf4 {[%emt 0:01:48]} 23. Qxf4 {[%emt 0:04:18]} Qxb2 {[%emt 0:09:48]} 24. h4 {[%emt 0:00:16]} Qxc3 {[%emt 0:01:41]} 25. hxg5+ {[%emt 0:00:34]} Kh7 {[%emt 0:02:23]} 26. Bxf7 {[%emt 0:01:59]} Qd4+ {[%emt 0:00:15]} 27. Kh1 {[%emt 0:00:07]} g6 {[%emt 0:00:21]} 28. Qh4+ {[%emt 0:00:00]} Kg7 {[%emt 0:00:00]} 29. Qh6+ {[%emt 0:00:00]} Kxf7 {[%emt 0:00:00]} 30. Rf1+ {[%emt 0:00:00]} Nf6 {[%emt 0:00:00]} 31. Rxf6+ {[%emt 0:02:54]} Qxf6 {[%emt 0:00:59]} 32. Qh7+ {[%emt 0:03:00]} Ke6 {[%emt 0:02:24]} 33. gxf6 {[%emt 0:00:00]} Rh8 {[%emt 0:00:33]} 34. Rxa6+ {[%emt 0:00:00]} Ke5 {[%emt 0:01:24]} 35. Qxh8 {[%emt 0:00:00]} Rxh8+ {[%emt 0:00:00]} 36. Kg1 {[%emt 0:00:00]} Rf8 {[%emt 0:03:44]} 37. Rc6 {[%emt 0:00:00]} Kd4 {[%emt 0:02:39]} 38. g4 {[%emt 0:02:48]} g5 {[%emt 0:03:44]} 39. Kg2 {[%emt 0:00:24]} Kxd3 {[%emt 0:00:22]} 40. e5 {[%emt 0:00:34]} Kd4 {[%emt 0:04:45]} 41. e6 {[%emt 0:03:03]} Rxf6 {[%emt 0:06:53]} 42. e7 {[%emt 0:00:10]} Rxc6 {[%emt 0:00:08]} 43. e8=Q {[%emt 0:00:05]} Rd6 {[%emt 0:01:05]} 44. Qh8+ {[%emt 0:07:20]} Ke4 {[%emt 0:07:48]} 45. Qh7+ {[%emt 0:00:55]} Kd4 {[%emt 0:02:17]} 46. Qg7+ {[%emt 0:07:34]} Kd3 {[%emt 0:00:15]} 47. Qxg5 {[%emt 0:01:34]} c4 {[%emt 0:00:32]} 48. Qf5+ {[%emt 0:02:33]} Kd2 {[%emt 0:01:58]} 49. Qf4+ {[%emt 0:06:24]} Kd3 {[%emt 0:02:10]} 50. Qf5+ $2 {[%emt 0:06:13]} Kd2 {[%emt 0:00:29]} 51. g5 $18 {[%emt 0:05:27]} c3 {[%emt 0:00:25]} 52. g6 {[%emt 0:02:04]} c2 {[%emt 0:04:14]} 53. g7 {[%emt 0:00:08]} c1=Q {[%emt 0:00:16]} 54. g8=Q {[%emt 0:01:17]} Qc6+ {[%emt 0:01:10]} 55. Kf2 {[%emt 0:05:35]} Qb6+ {[%emt 0:00:19]} 56. Kf1 {[%emt 0:00:48]} Qa6+ {[%emt 0:00:16]} 57. Kg1 {[%emt 0:04:25]} Qa1+ {[%emt 0:06:08]} 58. Kg2 {[%emt 0:00:09]} Qc3 {[%emt 0:06:42]} 59. Qa2+ {[%emt 0:02:08]} 1-0

[Event "4NCL 2019-20"]
[Site "Daventry"]
[Date "2020.02.09"]
[Round "6"]
[White "Latham, David"]
[Black "Andrzejewska, Anna"]
[Result "1-0"]
[ECO "E01"]
[WhiteElo "2064"]
[BlackElo "1974"]
[Annotator "NA"]
[PlyCount "79"]
[EventDate "2020.01.11"]
[EventCountry "ENG"]
[SourceTitle "playchess.com"]
[Source "ChessBase"]
[SourceQuality "1"]
[TimeControl "40/6000:3000+30"]

1. Nf3 {[%emt 0:00:00]} Nf6 {[%emt 0:00:00]} 2. g3 {[%emt 0:00:00]} c5 {[%emt 0:00:02]} 3. Bg2 {[%emt 0:00:00]} d5 {[%emt 0:00:50]} 4. O-O {[%emt 0:00:00]} Nc6 {[%emt 0:02:35]} 5. d4 {[%emt 0:00:09]} e6 {[%emt 0:08:03]} 6. c4 {[%emt 0:02:14]} cxd4 {[%emt 0:21:04]} 7. cxd5 {[%emt 0:02:55]} Nxd5 {[%emt 0:13:05]} 8. Nxd4 {[%emt 0:00:03]} Be7 {[%emt 0:06:58]} 9. Nxc6 bxc6 {[%emt 0:00:00]} 10. e4 {[%emt 0:01:10]} Nf6 {[%emt 0:04:35]} 11. Qc2 {[%emt 0:00:36]} Bd7 {[%emt 0:00:00]} 12. Be3 {[%emt 0:00:15]} O-O {[%emt 0:01:39]} 13. Nc3 {[%emt 0:01:19]} e5 {[%emt 0:06:34]} 14. Na4 {[%emt 0:04:41]} Qc7 {[%emt 0:02:23]} 15. Bc5 {[%emt 0:01:33]} Rfe8 {[%emt 0:02:58]} 16. Rac1 {[%emt 0:01:02]} Rac8 {[%emt 0:02:39]} 17. Rfd1 {[%emt 0:02:50]} Be6 {[%emt 0:01:48]} 18. b3 {[%emt 0:00:20]} Bxc5 {[%emt 0:06:19]} 19. Nxc5 {[%emt 0:03:39]} Nd7 {[%emt 0:01:46]} 20. Nxd7 {[%emt 0:01:07]} Bxd7 {[%emt 0:00:04]} 21. Qc5 {[%emt 0:00:00]} Rb8 {[%emt 0:07:57]} 22. Rd2 {[%emt 0:04:25]} Rec8 {[%emt 0:01:34]} 23. Bf1 {[%emt 0:11:47]} Be8 {[%emt 0:00:39]} 24. Rcd1 {[%emt 0:06:36]} Rb6 {[%emt 0:02:53]} 25. Bc4 {[%emt 0:03:23]} h6 {[%emt 0:01:46]} 26. a4 {[%emt 0:00:30]} Rcb8 {[%emt 0:00:46]} 27. Rd6 {[%emt 0:01:54]} Qe7 {[%emt 0:00:27]} 28. Rxc6 {[%emt 0:00:00]} Qxc5 {[%emt 0:00:03]} 29. Rxc5 {[%emt 0:00:00]} Rb4 {[%emt 0:00:00]} 30. Rdd5 {[%emt 0:03:16]} Kh7 {[%emt 0:00:00]} 31. Rxe5 {[%emt 0:00:21]} f6 {[%emt 0:00:00]} 32. Re7 {[%emt 0:00:00]} R4b7 {[%emt 0:00:00]} 33. Rcc7 {[%emt 0:00:04]} Rxc7 {[%emt 0:00:00]} 34. Rxc7 {[%emt 0:00:00]} Bg6 {[%emt 0:00:00]} 35. f3 {[%emt 0:00:33]} a5 {[%emt 0:00:00]} 36. Kf2 {[%emt 0:00:50]} Rd8 {[%emt 0:00:00]} 37. Bd5 {[%emt 0:00:57]} f5 {[%emt 0:00:00]} 38. Ke3 {[%emt 0:00:04]} fxe4 {[%emt 0:00:00]} 39. fxe4 Rf8 {[%emt 0:00:18]} 40. Rc5 {[%emt 0:00:00]} 1-0

[Event "4NCL 2019-20"]
[Site "Daventry"]
[Date "2020.02.09"]
[Round "6"]
[White "Jackson, Carl"]
[Black "Varney, Zoe"]
[Result "0-1"]
[ECO "C30"]
[WhiteElo "2046"]
[BlackElo "2004"]
[Annotator "NA"]
[PlyCount "79"]
[EventDate "2020.01.11"]
[EventCountry "ENG"]
[SourceTitle "playchess.com"]
[Source "ChessBase"]
[SourceQuality "1"]
[TimeControl "40/6000:3000+30"]

1. e4 {[%emt 0:00:14]} e5 {[%emt 0:00:00]} 2. f4 {[%emt 0:00:15]} Bc5 {[%emt 0:00:00]} 3. Nf3 {[%emt 0:00:00]} d6 {[%emt 0:00:00]} 4. Nc3 {[%emt 0:00:00]} Bg4 {[%emt 0:03:27]} 5. h3 {[%emt 0:03:16]} Bxf3 {[%emt 0:00:00]} 6. Qxf3 {[%emt 0:00:00]} Nc6 {[%emt 0:11:29]} 7. Bb5 {[%emt 0:00:20]} exf4 {[%emt 0:08:24]} 8. Na4 {[%emt 0:09:50]} Qh4+ {[%emt 0:04:43]} 9. Kd1 {[%emt 0:00:56]} Nge7 {[%emt 0:04:59]} 10. Nxc5 {[%emt 0:02:00]} dxc5 {[%emt 0:00:00]} 11. d3 {[%emt 0:00:16]} O-O-O {[%emt 0:06:19]} 12. Qxf4 {[%emt 0:05:23]} Qxf4 {[%emt 0:04:38]} 13. Bxf4 {[%emt 0:00:49]} Nd4 {[%emt 0:00:00]} 14. a4 {[%emt 0:03:27]} Kb8 {[%emt 0:21:00]} 15. Be3 {[%emt 0:09:17]} Nxb5 {[%emt 0:11:25]} 16. axb5 {[%emt 0:00:00]} b6 {[%emt 0:00:00]} 17. Rf1 {[%emt 0:04:26]} f6 {[%emt 0:00:50]} 18. g4 {[%emt 0:13:06]} h6 {[%emt 0:01:23]} 19. Ke2 {[%emt 0:06:35]} c6 {[%emt 0:02:00]} 20. e5 {[%emt 0:11:33]} cxb5 {[%emt 0:06:38]} 21. exf6 {[%emt 0:08:52]} gxf6 {[%emt 0:00:37]} 22. Rxf6 {[%emt 0:00:00]} Nd5 {[%emt 0:00:00]} 23. Bf4+ {[%emt 0:00:49]} Nxf4+ {[%emt 0:00:29]} 24. Rxf4 {[%emt 0:00:00]} Rd7 {[%emt 0:00:25]} 25. Raf1 {[%emt 0:01:28]} a5 {[%emt 0:01:51]} 26. Rf6 {[%emt 0:00:57]} Kc7 {[%emt 0:00:53]} 27. Re6 {[%emt 0:00:47]} Rd6 {[%emt 0:01:08]} 28. Rff6 {[%emt 0:01:53]} Rxe6+ {[%emt 0:00:00]} 29. Rxe6 {[%emt 0:00:00]} a4 {[%emt 0:00:00]} 30. c3 {[%emt 0:02:51]} Kb7 {[%emt 0:00:35]} 31. Ke3 {[%emt 0:05:30]} b4 {[%emt 0:00:20]} 32. cxb4 {[%emt 0:00:00]} cxb4 {[%emt 0:00:00]} 33. Kd4 {[%emt 0:01:16]} Rc8 {[%emt 0:03:42]} 34. Rxh6 {[%emt 0:03:01]} a3 {[%emt 0:00:17]} 35. bxa3 {[%emt 0:00:00]} b3 {[%emt 0:00:01]} 36. Rh7+ {[%emt 0:00:00]} Ka6 {[%emt 0:00:00]} 37. g5 {[%emt 0:00:04]} b2 {[%emt 0:00:00]} 38. g6 {[%emt 0:00:00]} b1=Q {[%emt 0:00:00]} 39. h4 {[%emt 0:00:00]} Qg1+ {[%emt 0:00:27]} 40. Ke4 {[%emt 0:00:03]} 0-1